bitfinex/quotes_ETHUSD_20220219
["timestamp","ask_amount","ask_price","bid_price","bid_amount"]
[1645271074562,2.76731,2712.2,2711.8,0.00012349]
[1645271074563,11.0,2712.0,2711.8,0.00012349]
[1645271074760,4.42263,2711.9,2711.8,0.00012349]
[1645271075157,5.19594702,2711.9,2711.8,0.00012349]
[1645271075366,0.25,2712.1,2710.7,0.10201414]
[1645271075561,0.25,2712.1,2711.5,0.9221909]
[1645271076360,0.81248571,2711.9,2711.5,0.9221909]
[1645271076618,0.25,2712.1,2711.5,0.9221909]
[1645271076619,0.09290018,2712.1,2711.5,0.9221909]
[1645271076817,0.09290018,2712.1,2711.5,0.00246732]
[1645271077615,0.09290018,2712.1,2711.4,0.00201414]
[1645271077813,0.09290018,2712.1,2711.4,0.92419414]
[1645271078018,0.09290018,2712.1,2711.5,0.0077181]
[1645271078319,0.09290018,2712.1,2711.5,0.9299005]
[1645271078919,0.09290018,2712.1,2711.5,0.9221824]
[1645271079118,0.09290018,2712.1,2711.5,0.9299005]
[1645271079820,0.25282636,2712.8,2711.6,5.34411]
[1645271080124,0.25,2712.8,2711.9,0.92181]
[1645271080360,0.25,2713.1,2712.0,0.437]
[1645271080560,0.25,2713.1,2712.2,0.9218]
[1645271080561,0.00282636,2712.8,2712.2,0.9218]
[1645271080758,0.00282636,2712.8,2712.2,1.84557884]
[1645271080954,0.00282636,2712.8,2712.2,3.08675694]
[1645271081159,0.00282636,2712.8,2712.3,5.0]
[1645271081365,0.1406,2713.4,2712.5,5.0]
[1645271081556,2.707e-05,2712.8,2712.7,16.92151]
[1645271081760,0.80990645,2715.2,2713.1,11.0]
[1645271081761,0.73540202,2714.6,2713.1,11.0]
[1645271081959,0.00076297,2714.6,2713.5,16.0]
[1645271082160,0.00076297,2714.6,2713.6,0.5775]
[1645271082355,0.00076297,2714.6,2713.6,1.50071414]
[1645271082556,0.00076297,2714.6,2713.7,0.00201414]
[1645271082754,0.00076297,2714.6,2713.8,0.437]
[1645271082956,0.25076297,2714.6,2713.9,1.84450414]
[1645271083160,0.00076297,2714.6,2714.1,1.8424399]
[1645271083457,0.00076297,2714.6,2714.2,0.00201414]
[1645271083855,0.00076297,2714.6,2714.2,0.92322414]
[1645271084106,0.00076297,2714.6,2714.3,0.00201414]
[1645271084304,0.00076297,2714.6,2714.4,0.92114]
[1645271084507,0.00076297,2714.6,2714.5,0.00201414]
[1645271086218,0.00076297,2714.6,2714.5,11.43901414]
[1645271086410,0.25,2716.3,2714.7,11.0]
[1645271086613,0.25,2716.3,2714.9,18.762285]
[1645271086808,0.25,2716.3,2715.0,0.437]
[1645271087609,0.00282716,2715.8,2715.0,1.35782]
[1645271087868,0.00282716,2715.8,2715.3,1.8415581]
[1645271088165,0.00282716,2715.8,2715.3,0.92078]
[1645271088370,0.00282716,2715.8,2715.1,1.84155]
[1645271088568,0.68559845,2715.8,2715.1,1.84155]
[1645271088768,0.98082352,2716.3,2714.5,7.94572]
[1645271088769,3.50282717,2715.7,2714.6,0.1841]
[1645271089065,0.25,2715.6,2714.7,0.92103]
[1645271089266,0.25,2715.6,2714.5,0.92103]
[1645271089865,0.00282718,2715.2,2714.6,0.9210831]
[1645271090667,0.00282718,2715.2,2714.7,0.92105]
[1645271090873,0.18257366,2716.3,2714.7,0.92105]
[1645271090874,3.5,2716.3,2714.7,0.92105]
[1645271091069,0.25,2716.4,2714.8,0.6211]
[1645271091271,1.60181342,2717.3,2714.8,0.6211]
[1645271091272,2.719e-05,2715.0,2714.9,14.5]
[1645271091530,1.2235,2717.4,2715.9,1.84079]
[1645271091710,2.10610797,2717.4,2716.2,0.92034]
[1645271091911,2.10610797,2717.4,2716.3,0.437]
[1645271091912,0.25,2717.3,2716.3,0.437]
[1645271092112,0.42057345,2718.0,2716.3,0.437]
[1645271092113,7.49,2718.4,2716.9,5.0]
[1645271092316,2.0442707,2718.9,2716.9,5.0]
[1645271092317,0.25,2718.6,2717.0,0.437]
[1645271092512,0.25,2718.6,2717.0,5.6209]
[1645271092712,0.25,2718.6,2717.3,1.84004]
[1645271092912,0.25,2718.6,2717.3,2.27704]
[1645271093114,0.73979612,2717.8,2716.6,0.437]
[1645271093311,0.25,2717.7,2716.6,0.437]
[1645271093517,3.75,2717.7,2716.6,0.437]
[1645271093711,0.25,2717.7,2716.6,0.437]
[1645271094310,0.25,2717.7,2716.6,1.35736]
[1645271094511,0.25,2717.7,2716.6,0.437]
[1645271094711,0.88978931,2717.6,2716.6,0.437]
[1645271095110,0.25,2717.7,2716.6,0.437]
[1645271095373,0.25,2718.4,2716.7,3.5]
[1645271095574,2.91169802,2719.0,2717.3,0.9200324]
[1645271095575,0.13819997,2719.0,2717.3,0.9200324]
[1645271095776,0.13819997,2719.0,2717.4,0.437]
[1645271095971,0.0028271,2717.7,2717.4,5.59843495]
[1645271096175,0.0028271,2717.7,2717.4,0.437]
[1645271096371,0.00857992,2718.1,2717.4,0.437]
[1645271096572,0.00857992,2718.1,2717.6,4.5993369]
[1645271096770,0.00857992,2718.1,2717.7,0.437]
[1645271097073,0.13819997,2719.0,2717.6,3.3103091]
[1645271097268,0.13819997,2719.0,2717.7,0.437]
[1645271097473,0.25,2719.4,2717.9,0.91979]
[1645271097673,0.25,2719.4,2718.0,3.937]
[1645271097870,0.4772253,2719.8,2718.2,1.83925]
[1645271098070,0.25,2719.6,2718.8,0.26216817]
[1645271098271,0.25,2719.6,2718.7,0.437]
[1645271099103,0.4772253,2719.8,2718.7,0.437]
[1645271099104,0.42836446,2719.8,2718.7,0.437]
[1645271099306,10.0,2720.0,2718.8,0.62074916]
[1645271099605,10.0,2720.0,2718.9,0.437]
[1645271099707,10.0,2720.0,2719.0,3.5]
[1645271099906,10.0,2720.0,2719.1,0.437]
[1645271100104,10.0,2720.0,2718.9,0.91944]
[1645271100105,10.0,2720.0,2719.2,0.437]
[1645271100307,10.0,2720.0,2719.3,1.35639]
[1645271100504,10.0,2720.0,2719.5,0.91939]
[1645271100707,10.0,2720.0,2719.5,1.35639]
[1645271100911,0.00281292,2719.7,2719.5,1.35639]
[1645271101705,10.0,2720.0,2719.5,1.35639]
[1645271101903,10.0,2720.0,2719.5,1.74849515]
[1645271102105,0.00281292,2719.7,2719.5,0.91939]
[1645271102305,0.00281292,2719.7,2719.3,0.91939]
[1645271102510,0.00281292,2719.7,2718.5,0.91968]
[1645271102755,0.00281292,2719.7,2718.4,0.1838]
[1645271102956,17.49,2720.0,2718.3,0.437]
[1645271103157,0.00281293,2719.2,2718.3,0.437]
[1645271103361,0.00281293,2719.2,2718.4,0.84842327]
[1645271103557,0.25281293,2719.2,2718.3,1.3567782]
[1645271104165,0.25,2719.2,2718.3,1.3567782]
[1645271104361,0.00280799,2718.9,2718.3,2.2764782]
[1645271104557,0.00280799,2718.9,2718.3,1.3567782]
[1645271105158,0.00280799,2718.9,2718.4,0.91975]
[1645271105359,0.25,2719.2,2718.4,0.91975]
[1645271105559,0.25,2719.2,2718.1,3.67903]
[1645271105765,0.25,2719.2,2717.4,0.1839]
[1645271105766,0.00280799,2718.7,2717.4,0.1839]
[1645271105961,1.46540178,2718.7,2717.4,0.1839]
[1645271106262,1.46540178,2718.7,2717.1,0.1839]
[1645271106263,0.92023,2718.5,2717.1,0.1839]
[1645271106521,2.38282567,2718.5,2716.9,1.8403827]
[1645271106711,0.71257647,2717.9,2716.9,2.59365913]
[1645271106910,0.25,2717.8,2716.9,2.59365913]
[1645271107106,0.25,2717.8,2716.9,1.8403827]
[1645271107306,0.25,2717.8,2717.0,0.9201896]
[1645271107511,0.25,2717.8,2716.9,1.8403827]
[1645271108107,0.25280881,2717.8,2716.9,1.8403827]
[1645271108510,0.25280881,2717.8,2716.8,2.48513842]
[1645271108710,0.25280881,2717.8,2716.9,0.9202697]
[1645271108910,0.25,2717.8,2716.9,0.9202697]
[1645271109212,0.25,2717.8,2717.0,1.8404]
[1645271109213,0.77225908,2717.4,2717.0,1.8404]
[1645271109608,0.00280871,2717.8,2717.0,1.8404]
[1645271109815,0.00280871,2717.8,2717.6,0.51006824]
[1645271110113,0.25,2718.8,2717.6,0.51006824]
[1645271110359,0.25,2718.8,2717.6,2.35015824]
[1645271110555,0.00280911,2717.8,2717.6,2.35015824]
[1645271110760,0.00280911,2717.8,2717.6,1.84009]
[1645271110958,0.00280911,2717.8,2716.5,0.27001616]
[1645271111156,0.00280911,2717.8,2717.0,1.84041]
[1645271111358,0.25,2717.9,2717.0,2.76066]
[1645271111759,0.25,2717.9,2717.0,4.6010912]
[1645271111760,0.00280832,2717.8,2717.0,4.6010912]
[1645271112559,1.07327824,2717.9,2717.0,4.6010912]
[1645271112759,0.00280857,2717.8,2717.0,4.6010912]
[1645271112956,0.00280857,2717.8,2717.0,3.6808412]
[1645271113158,3.50280857,2717.8,2716.9,2.7606773]
[1645271113363,3.50280857,2717.8,2716.5,0.1839]
[1645271113559,11.0,2717.6,2716.5,0.1839]
[1645271113762,0.74849485,2716.7,2716.5,0.1839]
[1645271114021,0.74849485,2716.7,2716.0,0.00110182]
[1645271114420,4.4466,2717.7,2716.1,0.92063]
[1645271114713,0.25,2717.4,2716.1,0.92063]
[1645271115116,0.25,2717.4,2716.3,11.0]
[1645271115316,0.00280812,2717.8,2717.1,0.8435629]
[1645271115712,0.00280812,2717.8,2716.7,0.437]
[1645271116113,0.90013768,2718.1,2716.9,1.84025]
[1645271116413,0.00280847,2717.8,2717.2,0.9200932]
[1645271116613,0.00280847,2717.8,2717.2,1.66381003]
[1645271116811,0.00280847,2717.8,2717.2,0.9200932]
[1645271117021,0.00280847,2717.8,2717.3,1.84023]
[1645271117419,0.25,2718.1,2717.3,1.84023]
[1645271117420,2.8792,2718.7,2717.3,2.27723]
[1645271117618,6.6455,2719.2,2717.3,13.27723]
[1645271117619,0.0025561,2717.8,2717.3,13.27723]
[1645271117872,0.0025561,2717.8,2717.6,2.7598193]
[1645271118068,0.01022169,2718.6,2717.6,2.7598193]
[1645271118069,0.01022169,2718.6,2717.7,0.6209]
[1645271118269,0.01022169,2718.6,2718.1,1.67958443]
[1645271118669,0.83419165,2719.1,2718.1,1.67958443]
[1645271118874,0.83419165,2719.1,2718.2,0.9198544]
[1645271119169,0.83419165,2719.1,2718.2,2.7594344]
[1645271119369,3.08719997,2719.3,2718.2,1.83958]
[1645271119574,0.13819997,2719.3,2718.2,1.83958]
[1645271120270,0.93943261,2719.3,2718.3,0.87036471]
[1645271121073,0.25,2719.4,2718.5,0.91982]
[1645271121282,0.00272569,2718.9,2718.5,0.91982]
[1645271121709,0.00272569,2718.9,2718.5,2.75898]
[1645271122115,0.74456151,2719.7,2719.0,0.9196187]
[1645271122508,0.01130651,2719.2,2719.0,0.9196187]
[1645271122711,0.01130651,2719.2,2719.0,0.7196187]
[1645271123309,0.01130651,2719.2,2718.9,1.83927]
[1645271123310,0.72781233,2719.2,2718.7,2.759]
[1645271123514,0.96650582,2719.2,2717.7,0.437]
[1645271123712,0.96650582,2719.2,2717.6,0.91997]
[1645271124513,0.68290709,2718.2,2717.6,0.91997]
[1645271124716,0.93290709,2718.2,2717.8,1.83983]
[1645271124918,0.93290709,2718.2,2717.6,1.8400317]
[1645271125112,0.93290709,2718.2,2717.2,0.92016]
[1645271125966,0.93290709,2718.2,2717.2,4.6006473]
[1645271126267,0.93290709,2718.2,2716.9,0.9203]
[1645271126465,0.93290709,2718.2,2716.8,1.84054]
[1645271127066,0.8174755,2717.5,2716.8,1.84054]
[1645271127466,1.0674755,2717.5,2716.8,1.84054]
[1645271127865,1.0174755,2717.5,2716.8,1.84054]
[1645271128066,0.2,2717.5,2716.8,1.84054]
[1645271128366,0.2,2717.5,2716.9,0.9203273]
[1645271128771,0.2,2717.5,2716.4,1.84064]
[1645271129024,0.2,2717.5,2716.2,0.00150686]
[1645271129215,0.9207144,2717.3,2716.2,0.00150686]
[1645271129418,0.9207144,2717.3,2714.6,0.14524005]
[1645271129419,0.92099,2716.2,2714.7,0.921]
[1645271129613,0.92099,2716.2,2714.8,0.17909418]
[1645271129820,0.92099,2716.2,2714.5,0.0142132]
[1645271129821,0.88210032,2715.3,2714.5,0.00201414]
[1645271130014,1.13210032,2715.3,2714.4,0.92113]
[1645271130314,1.13210032,2715.3,2714.5,0.17916286]
[1645271130514,1.13210032,2715.3,2714.3,0.00201414]
[1645271130713,1.13210032,2715.3,2714.3,0.18123629]
[1645271130914,1.13210032,2715.3,2714.6,0.00942318]
[1645271131120,3.5,2715.2,2714.6,0.00942318]
[1645271131514,1.13210032,2715.3,2714.6,0.00942318]
[1645271131919,1.13210032,2715.3,2714.3,0.00201414]
[1645271131920,4.63210032,2715.3,2714.3,0.00201414]
[1645271132123,4.63210032,2715.3,2714.7,0.00942301]
[1645271132422,0.25,2715.3,2714.7,0.00942301]
[1645271132617,0.25,2715.3,2714.7,0.93045301]
[1645271133063,0.25,2716.1,2714.7,1.00714616]
[1645271133261,0.25,2716.0,2714.7,1.00714616]
[1645271133460,0.69148136,2715.9,2714.9,0.34239296]
[1645271133664,0.69148136,2715.9,2715.0,0.92092]
[1645271134563,0.69148136,2715.9,2715.2,0.00942127]
[1645271135162,3.5,2715.8,2715.2,0.00942127]
[1645271135361,0.92113,2715.7,2715.2,0.00942127]
[1645271135563,3.5,2715.6,2714.3,0.00201414]
[1645271135765,0.65307642,2714.9,2714.3,0.00201414]
[1645271135965,0.25,2715.4,2714.3,0.00201414]
[1645271136366,0.25,2715.4,2714.4,0.9211]
[1645271136622,0.25,2715.4,2714.5,0.00201414]
[1645271137014,0.88426321,2715.0,2714.6,0.00942318]
[1645271137914,0.25,2715.4,2714.6,1.8420586]
[1645271138518,0.25,2715.4,2714.5,0.00942353]
[1645271139116,0.25,2715.4,2714.3,0.00201414]
[1645271139317,0.25,2715.4,2714.7,0.00942301]
[1645271140358,0.82698758,2715.2,2714.4,0.92108]
[1645271140557,0.82698758,2715.2,2714.8,0.00942266]
[1645271140761,0.25,2715.4,2714.8,0.00942266]
[1645271141659,0.25,2715.4,2714.4,3.68395]
[1645271141858,0.25,2715.4,2714.8,0.00942248]
[1645271142063,0.18987531,2715.4,2714.8,0.00942248]
[1645271142765,0.18987531,2715.4,2714.7,1.84196]
[1645271142962,0.18987531,2715.4,2714.8,1.85116248]
[1645271143363,0.18987531,2715.4,2715.0,0.9209]
[1645271143561,0.18987531,2715.4,2715.0,1.84181]
[1645271143765,0.18987531,2715.4,2714.8,1.85116248]
[1645271144030,0.18987531,2715.4,2714.8,1.84174]
[1645271144218,0.18987531,2715.4,2714.9,0.00942214]
[1645271144617,0.18987531,2715.4,2714.9,0.93040784]
[1645271144916,0.18987531,2715.4,2714.9,0.00942214]
[1645271145328,0.18377647,2715.4,2714.7,1.8418953]
[1645271145518,0.18377647,2715.4,2714.9,0.00942231]
[1645271146018,0.18377647,2715.4,2714.9,0.93044041]
[1645271146518,0.18377647,2715.4,2714.9,0.9210181]
[1645271146721,0.18377647,2715.4,2714.9,0.93044041]
[1645271147123,0.18377647,2715.4,2714.9,1.85125121]
[1645271147518,0.18377647,2715.4,2715.0,0.9209]
[1645271147761,2.38,2716.2,2715.0,12.84182]
[1645271147964,0.13819997,2716.5,2715.1,1.84155]
[1645271147965,0.25,2716.1,2715.1,1.84155]
[1645271148165,9.83793535,2717.1,2715.1,5.9615573]
[1645271148166,3.5,2717.0,2715.1,5.9615573]
[1645271148364,0.25,2716.9,2715.2,6.10402118]
[1645271148563,0.25,2716.9,2716.3,0.43141095]
[1645271148763,9.438,2717.7,2716.3,0.43141095]
[1645271148764,3.5,2717.6,2716.3,0.43141095]
[1645271148964,0.25,2717.4,2716.3,0.43141095]
[1645271149163,0.25,2717.4,2716.4,0.437]
[1645271149659,0.25,2717.4,2716.6,0.92031]
[1645271149863,0.25,2717.4,2716.7,0.9203388]
[1645271150569,7.49,2718.7,2716.8,0.437]
[1645271150570,3.5,2718.2,2716.8,0.437]
[1645271150767,7.49,2718.7,2716.8,0.437]
[1645271150768,3.75,2718.3,2716.9,14.68037]
[1645271150964,0.25,2718.3,2717.3,0.9200619]
[1645271151165,0.77874219,2718.1,2717.3,0.9200619]
[1645271151617,0.77874219,2718.1,2717.2,1.8401238]
[1645271152218,0.77874219,2718.1,2717.4,0.9202147]
[1645271152815,0.25,2718.3,2717.4,0.9202147]
[1645271153017,2.8537,2718.6,2717.6,1.8398622]
[1645271153223,2.8537,2718.6,2717.8,0.91982]
[1645271153224,0.25,2718.6,2717.8,0.91982]
[1645271153419,0.25,2718.6,2717.8,0.91983]
[1645271153618,0.25,2718.6,2717.8,1.35683]
[1645271154020,0.25,2718.6,2717.8,1.63892838]
[1645271154218,0.25,2718.6,2718.0,0.91987]
[1645271154419,0.25,2718.6,2718.0,3.679348]
[1645271154618,0.25,2718.6,2718.0,2.759538]
[1645271155265,0.25,2718.6,2718.0,1.839708]
[1645271155662,0.25,2718.6,2717.9,1.8396759]
[1645271157067,0.25,2718.6,2717.0,0.437]
[1645271157265,0.74560438,2718.4,2717.4,1.61352343]
[1645271157467,0.74560438,2718.4,2717.4,2.53364343]
[1645271157663,0.74560438,2718.4,2717.4,1.61346893]
[1645271158264,1.66577438,2718.4,2717.4,1.61346893]
[1645271158468,0.74560438,2718.4,2717.6,0.9201071]
[1645271158668,0.74560438,2718.4,2717.0,2.27733]
[1645271159111,0.25,2718.6,2717.1,14.5]
[1645271159314,0.25,2718.6,2717.3,11.0]
[1645271159511,0.25,2718.6,2717.8,0.9198899]
[1645271159708,0.25,2718.6,2718.0,0.91988]
[1645271160913,2.39568995,2719.3,2718.1,0.9198969]
[1645271161130,0.55575995,2719.3,2718.2,0.91988]
[1645271162110,0.55575995,2719.3,2718.4,0.38866522]
[1645271162311,0.55575995,2719.3,2718.4,1.62785857]
[1645271162513,0.55575995,2719.3,2718.4,0.91986]
[1645271163160,0.55575995,2719.3,2718.4,1.8397346]
[1645271163869,0.25257371,2719.4,2718.5,4.598461]
[1645271164464,0.25,2719.4,2718.5,4.598461]
[1645271164662,0.25258281,2719.4,2718.5,4.598461]
[1645271164964,0.25258281,2719.4,2718.8,0.9197]
[1645271165362,0.25258281,2719.4,2718.8,0.97075274]
[1645271165562,0.25,2719.4,2718.8,0.97075274]
[1645271165763,0.25258294,2719.4,2718.8,0.97075274]
[1645271165968,0.25258294,2719.4,2718.9,0.9196806]
[1645271166369,0.25258294,2719.4,2718.9,12.8391906]
[1645271166807,0.25,2719.4,2718.9,12.8391906]
[1645271167111,10.0,2720.0,2719.2,11.0]
[1645271167112,10.25,2720.0,2719.2,11.0]
[1645271167314,10.25,2720.0,2719.3,19.5337552]
[1645271167510,10.0,2720.0,2719.3,22.2915252]
[1645271167812,4.50196327,2720.0,2719.3,22.48663142]
[1645271168014,3.2219,2721.1,2719.3,22.48663142]
[1645271168015,2.9107,2721.6,2719.5,25.5]
[1645271168216,2.9107,2721.6,2720.0,11.918954]
[1645271168420,2.9107,2721.6,2720.1,0.437]
[1645271168612,2.9107,2721.6,2720.4,1.8379314]
[1645271168918,1.23359135,2721.5,2720.4,1.8379314]
[1645271169112,0.66481264,2721.0,2720.4,1.8379314]
[1645271169311,0.25,2720.9,2720.4,1.8379314]
[1645271169712,0.25,2720.9,2720.2,1.838367]
[1645271169915,0.25,2720.9,2720.3,0.9191822]
[1645271170360,0.25,2720.9,2720.4,1.8381]
[1645271170562,0.13819997,2722.0,2720.5,11.0]
[1645271170769,0.75088127,2721.9,2721.0,0.91881]
[1645271170961,0.75088127,2721.9,2720.5,0.52311616]
[1645271170962,0.79123933,2721.9,2720.5,0.52311616]
[1645271171161,0.25,2721.6,2720.5,0.437]
[1645271171566,0.25,2721.6,2720.5,1.8380501]
[1645271171764,0.00282338,2721.2,2719.7,3.5]
[1645271171962,1.46433538,2721.2,2719.6,0.91936]
[1645271172167,0.25,2721.1,2719.6,0.91936]
[1645271172560,0.66740137,2720.7,2719.6,0.91936]
[1645271172763,0.66740137,2720.7,2719.8,1.8385623]
[1645271172962,0.00282341,2720.5,2719.8,2.7578323]
[1645271173161,0.00282341,2720.5,2719.8,0.91927]
[1645271173362,0.25282341,2720.5,2719.8,0.91927]
[1645271173761,0.25282341,2720.5,2720.1,1.8383305]
[1645271173762,0.00282341,2720.5,2720.1,1.8383305]
[1645271174016,0.25,2721.1,2720.1,1.8383305]
[1645271174222,0.00271045,2720.3,2720.1,1.8383305]
[1645271175019,0.00271045,2720.3,2719.9,1.83846]
[1645271175219,0.25,2721.1,2719.9,1.83846]
[1645271175220,0.25,2721.1,2719.9,2.75771]
[1645271175419,0.00282523,2720.3,2719.9,2.75771]
[1645271176018,0.00282523,2720.3,2719.9,1.83846]
[1645271176224,0.00282523,2720.3,2720.0,0.91925]
[1645271176422,0.25,2721.1,2720.0,0.91925]
[1645271176621,0.0026411,2720.2,2720.0,0.91925]
[1645271177623,0.25,2721.1,2720.0,0.91925]
[1645271177868,0.0026411,2720.2,2720.0,0.91925]
[1645271178069,0.0026411,2720.2,2720.0,2.75746]
[1645271178270,4.11e-05,2720.2,2720.1,0.437]
[1645271178470,7.49,2721.5,2720.1,0.437]
[1645271178668,0.25,2721.8,2720.4,0.919]
[1645271178870,0.25,2721.8,2720.5,0.437]
[1645271179269,0.25,2721.8,2720.6,0.91895]
[1645271179669,3.75,2721.8,2720.8,0.9190013]
[1645271179866,3.75,2721.8,2720.6,0.91895]
[1645271180068,3.75,2721.8,2720.8,0.91901]
[1645271180968,0.25,2721.8,2720.9,2.7566879]
[1645271181170,0.25,2721.8,2721.1,0.91893]
[1645271181370,0.00282518,2721.4,2721.1,0.91893]
[1645271181812,0.00282518,2721.4,2720.9,0.918895]
[1645271182216,0.00282518,2721.4,2720.8,1.09139179]
[1645271182413,0.25,2721.8,2720.8,1.09139179]
[1645271182614,0.00282518,2721.3,2720.8,1.09139179]
[1645271182813,0.25282518,2721.3,2720.8,1.09139179]
[1645271183415,0.00282518,2721.3,2720.8,1.09139179]
[1645271183621,0.04035806,2721.9,2720.9,1.8378247]
[1645271183817,0.00282519,2721.2,2721.0,1.83764]
[1645271184421,0.00282519,2721.2,2721.1,0.91878]
[1645271184818,0.04035806,2721.9,2721.1,2.756422]
[1645271185018,0.00282518,2721.3,2721.2,0.91884]
[1645271185465,0.00282518,2721.3,2721.2,1.83768]
[1645271186061,0.04035806,2721.9,2721.5,0.91877]
[1645271186265,0.00282518,2721.4,2721.3,1.8374723]
[1645271186565,0.00282518,2721.4,2721.1,1.83761]
[1645271186764,0.00282518,2721.4,2721.0,1.8378]
[1645271187167,0.04035806,2721.9,2721.0,1.8378]
[1645271187562,0.00282518,2721.3,2721.1,0.9188]
[1645271187961,0.00282518,2721.3,2721.2,0.91882]
[1645271188361,0.04035806,2721.9,2721.2,0.91882]
[1645271188561,0.04035806,2721.9,2721.4,0.91885]
[1645271188767,0.04035806,2721.9,2720.3,0.1837]
[1645271188768,0.00282518,2721.4,2720.3,0.1837]
[1645271189016,0.25,2721.2,2720.2,1.83822]
[1645271189216,0.25,2721.2,2720.2,0.9192607]
[1645271189823,0.00256484,2720.8,2720.2,0.9192607]
[1645271190014,0.71555779,2720.6,2720.2,0.9192607]
[1645271190418,0.71555779,2720.6,2719.8,1.83841]
[1645271190419,0.96555779,2720.6,2719.5,0.1837]
[1645271190623,0.65037495,2720.1,2719.0,1.68566144]
[1645271190817,0.65037495,2720.1,2719.1,1.83911]
[1645271190818,3.75,2720.0,2719.1,1.83911]
[1645271191021,3.75,2720.0,2718.5,0.379]
[1645271191218,3.75,2720.0,2718.7,0.1837]
[1645271191417,3.75,2720.0,2718.6,2.02295]
[1645271191818,0.81590499,2719.2,2718.8,1.83925]
[1645271192021,0.81590499,2719.2,2718.5,0.1952]
[1645271192022,2.2778016,2719.2,2718.5,0.1952]
[1645271192223,1.06590499,2719.2,2718.5,0.1952]
[1645271193074,0.91992,2719.1,2718.5,0.1952]
[1645271193275,2.90587499,2719.2,2717.7,0.1839]
[1645271193276,0.92006,2719.0,2717.7,0.1839]
[1645271193476,0.92006,2719.0,2717.7,2.02385]
[1645271193673,2.90587499,2719.2,2717.7,2.02385]
[1645271194273,3.5,2719.1,2717.8,0.9200098]
[1645271194473,3.5,2719.1,2717.9,1.8397657]
[1645271194474,0.70015573,2718.5,2717.9,1.8397657]
[1645271194674,0.25,2718.4,2717.7,1.83995]
[1645271195079,14.75,2719.4,2717.7,1.83995]
[1645271195374,0.25,2719.1,2717.7,1.83995]
[1645271195576,0.91997,2719.0,2717.8,0.91995]
[1645271195776,3.5,2718.9,2717.8,0.91995]
[1645271195978,0.83991963,2718.7,2717.8,0.91995]
[1645271196287,0.25,2719.1,2717.9,14.5]
[1645271196528,0.25,2719.1,2718.0,0.1839]
[1645271196825,0.25,2719.1,2718.4,0.9195654]
[1645271197024,0.25,2719.1,2718.4,12.5404654]
[1645271197424,0.25,2719.1,2718.5,4.6475817]
[1645271197628,0.25,2719.1,2718.6,0.1839]
[1645271197826,0.25,2719.1,2718.7,1.83915]
[1645271198030,0.25,2719.1,2718.8,2.9421564]
[1645271198425,0.25,2719.1,2718.8,4.7311064]
[1645271198826,0.25,2719.1,2718.8,5.6505864]
[1645271199029,0.25,2719.1,2718.8,4.5473664]
[1645271199225,0.25,2719.1,2718.8,2.7084164]
[1645271199429,0.25,2720.1,2718.9,1.5401618]
[1645271199629,0.25,2720.5,2719.3,11.91929]
[1645271199827,0.25,2720.5,2719.5,1.8383574]
[1645271200027,0.25,2720.5,2719.5,2.0220574]
[1645271200273,0.25,2720.5,2719.6,0.91916]
[1645271200461,0.63086326,2720.1,2719.6,3.6765987]
[1645271201158,0.63086326,2720.1,2719.6,1.8383387]
[1645271201565,0.63086326,2720.1,2719.6,0.9191787]
[1645271201763,0.63086326,2720.1,2719.5,3.6766674]
[1645271202063,0.63086326,2720.1,2719.2,1.8389003]
[1645271202262,0.63086326,2720.1,2718.9,2.7586284]
[1645271202465,0.25,2719.9,2718.9,2.7586284]
[1645271202864,0.77401701,2719.4,2718.9,1.83901]
[1645271203062,0.25,2719.5,2719.1,0.91956]
[1645271203261,0.25,2719.5,2719.1,0.91541798]
[1645271203462,0.25,2719.5,2718.9,1.83901]
[1645271203666,0.25,2719.5,2719.1,0.9195597]
[1645271203865,2.08924,2720.3,2719.1,0.9195597]
[1645271204122,2.08924,2720.3,2717.1,0.6924142]
[1645271204123,1.45658944,2718.9,2717.1,0.6924142]
[1645271204319,1.45658944,2718.9,2717.2,0.32021062]
[1645271204320,0.01291999,2717.6,2717.2,0.32021062]
[1645271204517,1.4755631,2717.6,2716.8,0.32021062]
[1645271204721,0.01290281,2717.3,2716.4,0.00168893]
[1645271204918,0.25,2717.4,2716.4,0.00168893]
[1645271205119,0.9208,2717.1,2716.4,0.00168893]
[1645271205523,0.9208,2717.1,2716.3,0.28846003]
[1645271205817,0.25,2717.4,2716.4,0.28909024]
[1645271206017,0.25,2718.2,2716.5,5.1839]
[1645271206219,1.17009,2718.4,2716.6,11.28740125]
[1645271206416,4.67009,2718.4,2717.4,0.81613144]
[1645271206618,7.7049139,2719.0,2717.4,0.81613144]
[1645271206619,0.1824,2719.6,2717.5,11.0]
[1645271206822,0.66305303,2720.0,2717.5,11.0]
[1645271206823,0.25,2719.4,2717.9,5.0]
[1645271207018,3.5,2719.9,2718.4,11.0]
[1645271207216,0.25,2720.1,2718.5,0.1837]
[1645271207415,0.71420791,2719.6,2718.5,0.1837]
[1645271207615,0.25,2719.6,2718.5,0.1837]
[1645271207872,0.25,2719.6,2718.6,0.437]
[1645271208268,0.25,2719.6,2718.6,11.437]
[1645271208669,0.25,2719.6,2718.7,0.1837]
[1645271208870,0.25,2719.6,2718.8,0.437]
[1645271209169,0.25,2719.6,2718.9,0.1837]
[1645271209367,0.25,2719.6,2719.0,0.437]
[1645271209571,0.25,2719.6,2719.0,11.437]
[1645271209768,0.25,2719.6,2719.1,0.1837]
[1645271209967,0.25,2719.6,2719.2,0.437]
[1645271216568,0.25,2719.6,2718.5,2.275824]
[1645271216772,0.25,2719.6,2718.3,0.1837]
[1645271216773,0.71429893,2719.3,2718.3,0.1837]
[1645271216971,0.71429893,2719.3,2718.0,9.0467549]
[1645271216972,3.5,2719.2,2718.1,0.1839]
[1645271217275,0.85883684,2718.8,2718.1,0.1839]
[1645271217570,0.25,2718.8,2717.6,0.1839]